[Event "Late-Titled-Tuesday-Blitz-June-04-2024"]
[Site "Chess.com"]
[Date "2024.06.04"]
[Round "2"]
[White "PapaieDudu"]
[Black "mightysmasher"]
[Result "0-1"]
[WhiteElo "2345"]
[BlackElo "2592"]
[TimeControl "180+1"]
[EndTime "14:18:28 PDT"]
[Termination "mightysmasher won on time"]

1. Nf3 {[%clk 0:03:00.2]} 1... d5 {[%clk 0:02:59.4]} 2. d4 {[%clk 0:03:00.3]}
2... Nf6 {[%clk 0:02:57.1]} 3. c4 {[%clk 0:03:00]} 3... e6 {[%clk 0:02:57.2]} 4.
Nc3 {[%clk 0:02:59.1]} 4... Be7 {[%clk 0:02:57]} 5. Bg5 {[%clk 0:02:58]} 5...
O-O {[%clk 0:02:56.8]} 6. e3 {[%clk 0:02:58.4]} 6... Ne4 {[%clk 0:02:54.3]} 7.
Bxe7 {[%clk 0:02:57.1]} 7... Qxe7 {[%clk 0:02:53.9]} 8. cxd5 {[%clk 0:02:53.9]}
8... Nxc3 {[%clk 0:02:52.8]} 9. bxc3 {[%clk 0:02:53.6]} 9... exd5 {[%clk
0:02:42.8]} 10. Qc2 {[%clk 0:02:46.7]} 10... c6 {[%clk 0:02:39.3]} 11. Bd3
{[%clk 0:02:46.3]} 11... h6 {[%clk 0:02:36.6]} 12. O-O {[%clk 0:02:44.3]} 12...
Nd7 {[%clk 0:02:35.3]} 13. e4 {[%clk 0:02:40]} 13... Nb6 {[%clk 0:02:30.1]} 14.
Rfe1 {[%clk 0:02:37.6]} 14... Qc7 {[%clk 0:02:28.8]} 15. e5 {[%clk 0:02:34.5]}
15... Be6 {[%clk 0:02:23.6]} 16. h3 {[%clk 0:02:33]} 16... Rae8 {[%clk
0:02:22.7]} 17. Nh2 {[%clk 0:02:32.1]} 17... c5 {[%clk 0:02:18.9]} 18. Qe2
{[%clk 0:02:12.2]} 18... cxd4 {[%clk 0:02:05.8]} 19. cxd4 {[%clk 0:02:11.9]}
19... Rc8 {[%clk 0:02:05]} 20. f4 {[%clk 0:02:05.9]} 20... Qc3 {[%clk
0:02:02.8]} 21. Nf3 {[%clk 0:01:57]} 21... Rfe8 {[%clk 0:01:48.3]} 22. f5 {[%clk
0:01:53.7]} 22... Bd7 {[%clk 0:01:47.3]} 23. Kh1 {[%clk 0:01:35.9]} 23... Nc4
{[%clk 0:01:33.3]} 24. Rac1 {[%clk 0:01:00.5]} 24... Qa3 {[%clk 0:01:24.5]} 25.
Bb1 {[%clk 0:00:43.4]} 25... Qb2 {[%clk 0:00:40]} 26. Rc2 {[%clk 0:00:41.2]}
26... Qb4 {[%clk 0:00:35.5]} 27. g4 {[%clk 0:00:27.5]} 27... Bb5 {[%clk
0:00:18.3]} 28. e6 {[%clk 0:00:18.4]} 28... f6 {[%clk 0:00:17.3]} 29. Nh4 {[%clk
0:00:11.9]} 29... Na3 {[%clk 0:00:14]} 30. Rxc8 {[%clk 0:00:10.6]} 30... Rxc8
{[%clk 0:00:13.9]} 31. Qf2 {[%clk 0:00:10.3]} 31... Nxb1 {[%clk 0:00:13.3]} 32.
Ng6 {[%clk 0:00:09.9]} 32... Nc3 {[%clk 0:00:08.6]} 33. e7 {[%clk 0:00:09.5]}
33... Re8 {[%clk 0:00:08.3]} 34. Qf3 {[%clk 0:00:09.4]} 34... Ne4 {[%clk
0:00:08.2]} 35. Rxe4 {[%clk 0:00:09]} 35... dxe4 {[%clk 0:00:08.3]} 36. Qd1
{[%clk 0:00:08.3]} 36... Bc6 {[%clk 0:00:06.3]} 37. d5 {[%clk 0:00:08.4]} 37...
Bd7 {[%clk 0:00:06]} 38. d6 {[%clk 0:00:08.1]} 38... Qb5 {[%clk 0:00:06]} 39. a4
{[%clk 0:00:07.6]} 39... Qc6 {[%clk 0:00:06.1]} 40. Nf4 {[%clk 0:00:07.4]} 40...
e3+ {[%clk 0:00:05.7]} 41. Nd5 {[%clk 0:00:07.1]} 41... Qxa4 {[%clk 0:00:04.2]}
42. Qd3 {[%clk 0:00:04]} 42... Bb5 {[%clk 0:00:02]} 43. Qxe3 {[%clk 0:00:02.4]}
43... Bc6 {[%clk 0:00:02.3]} 44. Qe6+ {[%clk 0:00:02.3]} 44... Kh7 {[%clk
0:00:02.9]} 45. d7 {[%clk 0:00:02.4]} 45... Qd1+ {[%clk 0:00:03]} 46. Kh2 {[%clk
0:00:02.8]} 46... Qd2+ {[%clk 0:00:03.1]} 47. Kg3 {[%clk 0:00:02.7]} 47... Qd3+
{[%clk 0:00:03.5]} 48. Kf2 {[%clk 0:00:02]} 48... Bxd5 {[%clk 0:00:01.3]} 49.
dxe8=Q {[%clk 0:00:01.4]} 49... Qf3+ {[%clk 0:00:01.7]} 50. Ke1 {[%clk
0:00:01.2]} 50... Qc3+ {[%clk 0:00:02.6]} 0-1

[Event "Late-Titled-Tuesday-Blitz-June-04-2024"]
[Site "Chess.com"]
[Date "2024.06.04"]
[Round "2"]
[White "Rital44"]
[Black "NCchamp"]
[Result "0-1"]
[WhiteElo "2693"]
[BlackElo "2427"]
[TimeControl "180+1"]
[EndTime "14:18:32 PDT"]
[Termination "NCchamp won by checkmate"]

1. d4 {[%clk 0:03:00.9]} 1... d5 {[%clk 0:02:59.1]} 2. Nc3 {[%clk 0:03:00.3]}
2... Nf6 {[%clk 0:02:57.3]} 3. Bf4 {[%clk 0:03:00.3]} 3... a6 {[%clk 0:02:57.8]}
4. e3 {[%clk 0:02:59.3]} 4... Bf5 {[%clk 0:02:57.9]} 5. f3 {[%clk 0:02:56.3]}
5... e6 {[%clk 0:02:57.5]} 6. g4 {[%clk 0:02:55.6]} 6... Bg6 {[%clk 0:02:58.2]}
7. h4 {[%clk 0:02:56.1]} 7... h5 {[%clk 0:02:56.3]} 8. g5 {[%clk 0:02:55.7]}
8... Nfd7 {[%clk 0:02:55.1]} 9. Bd3 {[%clk 0:02:56.3]} 9... Bxd3 {[%clk
0:02:49]} 10. Qxd3 {[%clk 0:02:57.2]} 10... g6 {[%clk 0:02:49.3]} 11. O-O-O
{[%clk 0:02:55.5]} 11... Bd6 {[%clk 0:02:31.3]} 12. Nh3 {[%clk 0:02:54.6]} 12...
Qe7 {[%clk 0:02:27]} 13. e4 {[%clk 0:02:54]} 13... dxe4 {[%clk 0:02:26.2]} 14.
fxe4 {[%clk 0:02:29.3]} 14... Bxf4+ {[%clk 0:01:57.4]} 15. Nxf4 {[%clk
0:02:30.2]} 15... Nc6 {[%clk 0:01:43.5]} 16. d5 {[%clk 0:02:07.2]} 16... Nce5
{[%clk 0:01:43.1]} 17. Qd4 {[%clk 0:02:06.9]} 17... Qc5 {[%clk 0:01:08.3]} 18.
dxe6 {[%clk 0:02:04.2]} 18... fxe6 {[%clk 0:01:01.8]} 19. Nxe6 {[%clk 0:02:01]}
19... Qxd4 {[%clk 0:01:00.8]} 20. Rxd4 {[%clk 0:02:00.3]} 20... Rc8 {[%clk
0:00:53.9]} 21. Nd5 {[%clk 0:01:56.3]} 21... c5 {[%clk 0:00:40.2]} 22. Rd2
{[%clk 0:01:42.4]} 22... Rc6 {[%clk 0:00:34.6]} 23. Ndf4 {[%clk 0:01:17.7]}
23... Ke7 {[%clk 0:00:31.4]} 24. Rhd1 {[%clk 0:00:38.3]} 24... Rxe6 {[%clk
0:00:25.4]} 25. Nxe6 {[%clk 0:00:38.8]} 25... Kxe6 {[%clk 0:00:25.3]} 26. Rd6+
{[%clk 0:00:38.4]} 26... Ke7 {[%clk 0:00:25.9]} 27. R6d5 {[%clk 0:00:39.3]}
27... Rf8 {[%clk 0:00:23.4]} 28. a3 {[%clk 0:00:34.7]} 28... Rf4 {[%clk
0:00:23]} 29. Re1 {[%clk 0:00:34]} 29... Ke6 {[%clk 0:00:16.4]} 30. Rd2 {[%clk
0:00:28.4]} 30... Rxh4 {[%clk 0:00:15.8]} 31. b4 {[%clk 0:00:29]} 31... Nf3
{[%clk 0:00:16.1]} 32. Red1 {[%clk 0:00:27.1]} 32... Nxd2 {[%clk 0:00:16.2]} 33.
Rxd2 {[%clk 0:00:28]} 33... cxb4 {[%clk 0:00:16.7]} 34. axb4 {[%clk 0:00:28.7]}
34... Rxe4 {[%clk 0:00:16.2]} 35. c3 {[%clk 0:00:29.4]} 35... Rg4 {[%clk
0:00:15.3]} 36. Kb2 {[%clk 0:00:29.6]} 36... Rxg5 {[%clk 0:00:15.6]} 37. Kb3
{[%clk 0:00:30.2]} 37... Rf5 {[%clk 0:00:15.8]} 38. Re2+ {[%clk 0:00:30.3]}
38... Ne5 {[%clk 0:00:15.4]} 39. Rd2 {[%clk 0:00:30.6]} 39... g5 {[%clk
0:00:15.4]} 40. Rd8 {[%clk 0:00:31.3]} 40... Rf7 {[%clk 0:00:15.4]} 41. Rh8
{[%clk 0:00:31.1]} 41... h4 {[%clk 0:00:15.6]} 42. c4 {[%clk 0:00:32]} 42... Kf5
{[%clk 0:00:11.5]} 43. c5 {[%clk 0:00:32.5]} 43... Kg4 {[%clk 0:00:11.7]} 44.
Kc3 {[%clk 0:00:33]} 44... h3 {[%clk 0:00:11.9]} 45. Kd4 {[%clk 0:00:33.5]}
45... Nc6+ {[%clk 0:00:12.3]} 46. Kd5 {[%clk 0:00:33.4]} 46... Kg3 {[%clk
0:00:12.7]} 47. Ke6 {[%clk 0:00:33.7]} 47... Rg7 {[%clk 0:00:11.8]} 48. Kf6
{[%clk 0:00:33.7]} 48... Rc7 {[%clk 0:00:11.1]} 49. Kxg5 {[%clk 0:00:33.8]}
49... h2 {[%clk 0:00:11.4]} 50. Kf5 {[%clk 0:00:34]} 50... Kg2 {[%clk
0:00:11.7]} 51. Rg8+ {[%clk 0:00:34.7]} 51... Kh1 {[%clk 0:00:12]} 52. Ke6
{[%clk 0:00:34.5]} 52... Re7+ {[%clk 0:00:10.7]} 53. Kd6 {[%clk 0:00:35.1]}
53... Re2 {[%clk 0:00:10.4]} 54. Kc7 {[%clk 0:00:35.6]} 54... Nxb4 {[%clk
0:00:10.3]} 55. Kxb7 {[%clk 0:00:35.6]} 55... Rg2 {[%clk 0:00:10.4]} 56. Rd8
{[%clk 0:00:32.5]} 56... Kg1 {[%clk 0:00:10.5]} 57. Rd1+ {[%clk 0:00:32.4]}
57... Kf2 {[%clk 0:00:10.9]} 58. Rh1 {[%clk 0:00:33]} 58... Kg3 {[%clk
0:00:10.8]} 59. Rb1 {[%clk 0:00:32.7]} 59... Rg1 {[%clk 0:00:10]} 60. Rb3+
{[%clk 0:00:33.3]} 60... Kg2 {[%clk 0:00:10]} 61. Rb2+ {[%clk 0:00:33.8]} 61...
Kf3 {[%clk 0:00:09.8]} 62. Rb3+ {[%clk 0:00:34.4]} 62... Ke4 {[%clk 0:00:07]}
63. Rxb4+ {[%clk 0:00:35]} 63... Kd3 {[%clk 0:00:07.3]} 64. c6 {[%clk
0:00:31.6]} 64... h1=Q {[%clk 0:00:07]} 65. Rb6 {[%clk 0:00:31.6]} 65... Rg7+
{[%clk 0:00:06.1]} 66. Kxa6 {[%clk 0:00:31.1]} 66... Rc7 {[%clk 0:00:05.7]} 67.
Kb5 {[%clk 0:00:31]} 67... Qd5+ {[%clk 0:00:05.3]} 68. Ka6 {[%clk 0:00:31]}
68... Rxc6 {[%clk 0:00:05.6]} 69. Rxc6 {[%clk 0:00:29.2]} 69... Qxc6+ {[%clk
0:00:06]} 70. Ka5 {[%clk 0:00:29.7]} 70... Qb7 {[%clk 0:00:06.2]} 71. Ka4 {[%clk
0:00:30]} 71... Kc4 {[%clk 0:00:07.1]} 72. Ka3 {[%clk 0:00:30.1]} 72... Qb3#
{[%clk 0:00:07.4]} 0-1

[Event "Late-Titled-Tuesday-Blitz-June-04-2024"]
[Site "Chess.com"]
[Date "2024.06.04"]
[Round "2"]
[White "kingofthenil"]
[Black "Kombinator01"]
[Result "0-1"]
[WhiteElo "2883"]
[BlackElo "2478"]
[TimeControl "180+1"]
[EndTime "14:18:33 PDT"]
[Termination "Kombinator01 won by resignation"]

1. b3 {[%clk 0:03:00.5]} 1... d5 {[%clk 0:02:57.9]} 2. Bb2 {[%clk 0:03:01.4]}
2... Nc6 {[%clk 0:02:55.3]} 3. Nf3 {[%clk 0:02:51.1]} 3... f6 {[%clk 0:02:55.4]}
4. d4 {[%clk 0:02:26.5]} 4... Nh6 {[%clk 0:02:51.8]} 5. c4 {[%clk 0:02:25.7]}
5... e6 {[%clk 0:02:51.3]} 6. g3 {[%clk 0:02:14.7]} 6... Nf7 {[%clk 0:02:49.3]}
7. Bg2 {[%clk 0:02:14.6]} 7... Bb4+ {[%clk 0:02:48.6]} 8. Nbd2 {[%clk 0:02:08]}
8... O-O {[%clk 0:02:48.4]} 9. O-O {[%clk 0:02:08.4]} 9... b6 {[%clk 0:02:33.3]}
10. a3 {[%clk 0:01:57.2]} 10... Be7 {[%clk 0:02:28.6]} 11. e4 {[%clk 0:01:55.5]}
11... Bb7 {[%clk 0:02:24.3]} 12. Re1 {[%clk 0:01:49.4]} 12... Nd6 {[%clk
0:02:11.4]} 13. e5 {[%clk 0:01:44.4]} 13... fxe5 {[%clk 0:02:10]} 14. dxe5
{[%clk 0:01:38.1]} 14... Nf5 {[%clk 0:02:09.7]} 15. cxd5 {[%clk 0:01:36.2]}
15... Qxd5 {[%clk 0:02:06.7]} 16. Nd4 {[%clk 0:01:26.5]} 16... Qd7 {[%clk
0:01:41.2]} 17. Nxf5 {[%clk 0:01:12.8]} 17... Rxf5 {[%clk 0:01:37.9]} 18. Nc4
{[%clk 0:01:07.9]} 18... Qxd1 {[%clk 0:01:32.2]} 19. Raxd1 {[%clk 0:01:08.8]}
19... Bc5 {[%clk 0:01:29.5]} 20. Re2 {[%clk 0:01:02.1]} 20... Raf8 {[%clk
0:01:23.1]} 21. Rdd2 {[%clk 0:01:02.2]} 21... b5 {[%clk 0:00:56.2]} 22. b4
{[%clk 0:00:29.8]} 22... bxc4 {[%clk 0:00:54.8]} 23. bxc5 {[%clk 0:00:28.9]}
23... Na5 {[%clk 0:00:52.8]} 24. Rd7 {[%clk 0:00:22.5]} 24... Bxg2 {[%clk
0:00:47.4]} 25. Kxg2 {[%clk 0:00:23.4]} 25... R5f7 {[%clk 0:00:47.2]} 26. Rxf7
{[%clk 0:00:18.9]} 26... Rxf7 {[%clk 0:00:48.1]} 27. Bc3 {[%clk 0:00:19.6]}
27... Nb3 {[%clk 0:00:47.7]} 28. c6 {[%clk 0:00:19]} 28... Nc5 {[%clk
0:00:41.7]} 29. Rb2 {[%clk 0:00:19.3]} 29... h6 {[%clk 0:00:39.7]} 30. f4 {[%clk
0:00:18]} 30... g5 {[%clk 0:00:39.3]} 31. Bd4 {[%clk 0:00:12.7]} 31... Nb3
{[%clk 0:00:38.7]} 32. Bxa7 {[%clk 0:00:12]} 32... gxf4 {[%clk 0:00:38.1]} 33.
gxf4 {[%clk 0:00:11.3]} 33... Rxf4 {[%clk 0:00:38.3]} 34. Bb8 {[%clk 0:00:11.6]}
34... Rf7 {[%clk 0:00:25.4]} 35. a4 {[%clk 0:00:08]} 35... Kf8 {[%clk
0:00:25.2]} 36. Ba7 {[%clk 0:00:04.1]} 36... Ke8 {[%clk 0:00:24.8]} 37. Bc5
{[%clk 0:00:04]} 37... Nxc5 {[%clk 0:00:23.2]} 38. a5 {[%clk 0:00:03.7]} 38...
c3 {[%clk 0:00:21.5]} 39. Rc2 {[%clk 0:00:02.7]} 39... Rf4 {[%clk 0:00:16.6]}
40. Rxc3 {[%clk 0:00:03.1]} 40... Na6 {[%clk 0:00:17.3]} 41. Rh3 {[%clk
0:00:01.9]} 41... Rc4 {[%clk 0:00:15.7]} 42. Rxh6 {[%clk 0:00:02.5]} 42... Rxc6
{[%clk 0:00:16.4]} 43. Rh8+ {[%clk 0:00:02.5]} 43... Kd7 {[%clk 0:00:16.4]} 44.
Rh7+ {[%clk 0:00:03.4]} 44... Kc8 {[%clk 0:00:16.9]} 45. Re7 {[%clk 0:00:04.1]}
45... Nc5 {[%clk 0:00:16.5]} 46. h4 {[%clk 0:00:04.8]} 46... Nd3 {[%clk
0:00:16.5]} 47. h5 {[%clk 0:00:04.3]} 47... Nf4+ {[%clk 0:00:16.8]} 48. Kf3
{[%clk 0:00:04.4]} 48... Nxh5 {[%clk 0:00:17.7]} 49. Kg4 {[%clk 0:00:03.9]}
49... Rc5 {[%clk 0:00:16.7]} 50. Kxh5 {[%clk 0:00:01.8]} 50... Rxe5+ {[%clk
0:00:16.9]} 51. Kg4 {[%clk 0:00:02.6]} 51... Rxa5 {[%clk 0:00:17]} 52. Rxe6
{[%clk 0:00:03.2]} 52... Rd5 {[%clk 0:00:17.3]} 53. Kf4 {[%clk 0:00:03.7]} 53...
Kb7 {[%clk 0:00:17.2]} 54. Ke4 {[%clk 0:00:04.1]} 54... Rd8 {[%clk 0:00:17]} 55.
Re7 {[%clk 0:00:02.9]} 55... Kb6 {[%clk 0:00:16.9]} 56. Rh7 {[%clk 0:00:02.6]}
56... c5 {[%clk 0:00:16.3]} 57. Ke3 {[%clk 0:00:03.5]} 57... Kb5 {[%clk
0:00:16.5]} 58. Rh1 {[%clk 0:00:03.8]} 58... c4 {[%clk 0:00:16.2]} 59. Rb1+
{[%clk 0:00:04.5]} 59... Kc5 {[%clk 0:00:16.5]} 60. Rc1 {[%clk 0:00:05.2]} 60...
Kb4 {[%clk 0:00:16.9]} 61. Rb1+ {[%clk 0:00:05.7]} 61... Kc3 {[%clk 0:00:17.3]}
62. Rc1+ {[%clk 0:00:06.2]} 62... Kb3 {[%clk 0:00:17.8]} 63. Ke2 {[%clk
0:00:02.4]} 63... c3 {[%clk 0:00:17.6]} 64. Rb1+ {[%clk 0:00:03]} 64... Kc2
{[%clk 0:00:17.8]} 65. Rb7 {[%clk 0:00:03.8]} 65... Re8+ {[%clk 0:00:18.1]} 66.
Kf2 {[%clk 0:00:03.4]} 66... Kd2 {[%clk 0:00:18.1]} 67. Rd7+ {[%clk 0:00:03.6]}
67... Kc1 {[%clk 0:00:18.4]} 68. Re7 {[%clk 0:00:01.6]} 68... Rxe7 {[%clk
0:00:18.2]} 0-1

[Event "Late-Titled-Tuesday-Blitz-June-04-2024"]
[Site "Chess.com"]
[Date "2024.06.04"]
[Round "2"]
[White "JoakimVonAnd"]
[Black "Itay121"]
[Result "1-0"]
[WhiteElo "2777"]
[BlackElo "2533"]
[TimeControl "180+1"]
[EndTime "14:18:36 PDT"]
[Termination "JoakimVonAnd won by resignation"]

1. d4 {[%clk 0:03:00.9]} 1... Nf6 {[%clk 0:02:59.2]} 2. c4 {[%clk 0:03:01]} 2...
e6 {[%clk 0:02:59]} 3. Nc3 {[%clk 0:03:00.7]} 3... b6 {[%clk 0:02:59]} 4. e4
{[%clk 0:02:59.6]} 4... Bb4 {[%clk 0:02:58.1]} 5. Bd3 {[%clk 0:02:54.4]} 5...
Bb7 {[%clk 0:02:55.8]} 6. f3 {[%clk 0:02:50.7]} 6... c5 {[%clk 0:02:54.4]} 7. d5
{[%clk 0:02:50.1]} 7... O-O {[%clk 0:02:53]} 8. Ne2 {[%clk 0:02:48.7]} 8... d6
{[%clk 0:02:49.5]} 9. O-O {[%clk 0:02:48.2]} 9... Nbd7 {[%clk 0:02:46.3]} 10. a3
{[%clk 0:02:47]} 10... Bxc3 {[%clk 0:02:45.3]} 11. Nxc3 {[%clk 0:02:47.9]} 11...
exd5 {[%clk 0:02:41.3]} 12. cxd5 {[%clk 0:02:45.6]} 12... Ne5 {[%clk 0:02:36.9]}
13. Be2 {[%clk 0:02:42.3]} 13... Re8 {[%clk 0:02:31]} 14. Bg5 {[%clk 0:02:40]}
14... h6 {[%clk 0:02:27.9]} 15. Bh4 {[%clk 0:02:39.5]} 15... Ng6 {[%clk
0:02:26.3]} 16. Bf2 {[%clk 0:02:29.8]} 16... a6 {[%clk 0:02:23.9]} 17. a4 {[%clk
0:02:28.5]} 17... Nh5 {[%clk 0:02:21.4]} 18. g3 {[%clk 0:02:26.4]} 18... Qg5
{[%clk 0:02:10.3]} 19. Kh1 {[%clk 0:02:22.4]} 19... Kh8 {[%clk 0:01:54.9]} 20.
f4 {[%clk 0:02:15]} 20... Nhxf4 {[%clk 0:01:54.9]} 21. gxf4 {[%clk 0:02:14.8]}
21... Nxf4 {[%clk 0:01:47.3]} 22. Bf3 {[%clk 0:02:06.3]} 22... Bc8 {[%clk
0:01:36.5]} 23. Bg3 {[%clk 0:02:02.7]} 23... Bh3 {[%clk 0:01:23.3]} 24. Rf2
{[%clk 0:01:57.4]} 24... Rad8 {[%clk 0:01:14.5]} 25. Qd2 {[%clk 0:01:56.1]}
25... Ng6 {[%clk 0:01:07.5]} 26. Qxg5 {[%clk 0:01:48.8]} 26... hxg5 {[%clk
0:01:08.4]} 27. Bh5 {[%clk 0:01:34.6]} 27... Kg8 {[%clk 0:00:54.3]} 28. Bxg6
{[%clk 0:01:20.6]} 28... fxg6 {[%clk 0:00:55.2]} 29. Re1 {[%clk 0:01:09.2]}
29... Rd7 {[%clk 0:00:41.8]} 30. Kg1 {[%clk 0:01:08.1]} 30... Rb8 {[%clk
0:00:32.2]} 31. Rf3 {[%clk 0:00:56.3]} 31... Bg4 {[%clk 0:00:28.6]} 32. Rd3
{[%clk 0:00:49.8]} 32... b5 {[%clk 0:00:27.5]} 33. axb5 {[%clk 0:00:49.7]} 33...
axb5 {[%clk 0:00:28.4]} 34. e5 {[%clk 0:00:50.2]} 34... dxe5 {[%clk 0:00:27.2]}
35. Rxe5 {[%clk 0:00:48.3]} 35... Ra8 {[%clk 0:00:22.4]} 36. Nxb5 {[%clk
0:00:42]} 36... Bh3 {[%clk 0:00:20.4]} 37. Re1 {[%clk 0:00:37.6]} 37... Rf8
{[%clk 0:00:18.3]} 38. Bd6 {[%clk 0:00:34.3]} 38... Rf5 {[%clk 0:00:18]} 39.
Rxh3 {[%clk 0:00:34]} 39... Rxd5 {[%clk 0:00:17.2]} 40. Rf3 {[%clk 0:00:32.1]}
40... g4 {[%clk 0:00:16.7]} 41. Rf4 {[%clk 0:00:26.7]} 41... c4 {[%clk
0:00:16.7]} 42. Rxg4 {[%clk 0:00:24.5]} 42... Rxb5 {[%clk 0:00:16.5]} 43. Re8+
{[%clk 0:00:20.2]} 43... Kf7 {[%clk 0:00:15.1]} 44. Rf8+ {[%clk 0:00:20.6]}
44... Ke6 {[%clk 0:00:15.6]} 45. Rxg6+ {[%clk 0:00:20.4]} 45... Kd5 {[%clk
0:00:15.7]} 46. Rg5+ {[%clk 0:00:19.3]} 46... Kc6 {[%clk 0:00:16]} 47. Rxb5
{[%clk 0:00:19.2]} 47... Kxb5 {[%clk 0:00:15.7]} 48. Be5 {[%clk 0:00:18.8]}
48... g6 {[%clk 0:00:14.3]} 49. Bc3 {[%clk 0:00:18.7]} 49... Ka4 {[%clk
0:00:12.7]} 50. Rg8 {[%clk 0:00:18.3]} 50... Rd6 {[%clk 0:00:13]} 51. Kg2 {[%clk
0:00:18.7]} 51... Kb3 {[%clk 0:00:13.4]} 52. h4 {[%clk 0:00:18.2]} 52... Kc2
{[%clk 0:00:13.6]} 53. Kg3 {[%clk 0:00:18.1]} 53... Kd3 {[%clk 0:00:14]} 54. Kg4
{[%clk 0:00:18.2]} 54... Ke4 {[%clk 0:00:14.2]} 55. Kg5 {[%clk 0:00:18.5]} 55...
Kf3 {[%clk 0:00:09.6]} 56. Rxg6 {[%clk 0:00:18.1]} 56... Rd5+ {[%clk 0:00:10.3]}
57. Kh6 {[%clk 0:00:18.3]} 57... Kf4 {[%clk 0:00:07.2]} 58. h5 {[%clk
0:00:18.2]} 58... Rd8 {[%clk 0:00:07.2]} 59. Rf6+ {[%clk 0:00:17]} 59... Kg4
{[%clk 0:00:07.2]} 60. Rg6+ {[%clk 0:00:17.4]} 60... Kf5 {[%clk 0:00:05.1]} 61.
Rc6 {[%clk 0:00:17.2]} 61... Re8 {[%clk 0:00:02.5]} 62. Rxc4 {[%clk 0:00:16.6]}
62... Re6+ {[%clk 0:00:02.2]} 63. Kg7 {[%clk 0:00:16.9]} 63... Re7+ {[%clk
0:00:02.8]} 64. Kf8 {[%clk 0:00:16.8]} 64... Rh7 {[%clk 0:00:03.1]} 65. b4
{[%clk 0:00:16.8]} 65... Rxh5 {[%clk 0:00:02.9]} 66. Rc5+ {[%clk 0:00:17.2]}
66... Ke4 {[%clk 0:00:02.8]} 67. Rxh5 {[%clk 0:00:18.1]} 67... Kd3 {[%clk
0:00:03.7]} 68. b5 {[%clk 0:00:18.4]} 68... Kxc3 {[%clk 0:00:03.9]} 69. b6
{[%clk 0:00:19]} 69... Kc4 {[%clk 0:00:04.8]} 70. b7 {[%clk 0:00:19.5]} 1-0

[Event "Late-Titled-Tuesday-Blitz-June-04-2024"]
[Site "Chess.com"]
[Date "2024.06.04"]
[Round "2"]
[White "mostafa_sakha"]
[Black "IMRosen"]
[Result "1-0"]
[WhiteElo "2412"]
[BlackElo "2738"]
[TimeControl "180+1"]
[EndTime "14:18:36 PDT"]
[Termination "mostafa_sakha won on time"]

1. d4 {[%clk 0:03:00]} 1... d5 {[%clk 0:03:00.2]} 2. c4 {[%clk 0:02:59.8]} 2...
e6 {[%clk 0:03:00.3]} 3. Nc3 {[%clk 0:02:59.4]} 3... Nf6 {[%clk 0:03:00.9]} 4.
cxd5 {[%clk 0:02:59.1]} 4... exd5 {[%clk 0:03:01.3]} 5. Bg5 {[%clk 0:02:59.5]}
5... c6 {[%clk 0:03:02]} 6. e3 {[%clk 0:02:59.8]} 6... Bd6 {[%clk 0:03:02]} 7.
Bd3 {[%clk 0:02:59.2]} 7... h6 {[%clk 0:03:02.2]} 8. Bh4 {[%clk 0:02:59.1]} 8...
O-O {[%clk 0:03:02.9]} 9. Nge2 {[%clk 0:02:58.9]} 9... Re8 {[%clk 0:03:03]} 10.
Qc2 {[%clk 0:02:58.6]} 10... a5 {[%clk 0:03:03.6]} 11. Bg3 {[%clk 0:02:56.3]}
11... Bxg3 {[%clk 0:03:03.3]} 12. Nxg3 {[%clk 0:02:55.9]} 12... Na6 {[%clk
0:03:04.2]} 13. a3 {[%clk 0:02:55.5]} 13... Nc7 {[%clk 0:02:59.8]} 14. O-O
{[%clk 0:02:54.9]} 14... h5 {[%clk 0:03:00.3]} 15. h3 {[%clk 0:02:52.5]} 15...
h4 {[%clk 0:02:59.9]} 16. Nf5 {[%clk 0:02:52.3]} 16... Nh5 {[%clk 0:02:49.8]}
17. Rae1 {[%clk 0:02:38.6]} 17... Qg5 {[%clk 0:02:17]} 18. f4 {[%clk 0:02:27.7]}
18... Qf6 {[%clk 0:02:17]} 19. Rf3 {[%clk 0:01:15.6]} 19... b5 {[%clk 0:01:45]}
20. Kh2 {[%clk 0:01:13.9]} 20... b4 {[%clk 0:01:11.8]} 21. Na4 {[%clk
0:01:09.5]} 21... Bxf5 {[%clk 0:00:59]} 22. Bxf5 {[%clk 0:01:08.2]} 22... Ng3
{[%clk 0:00:59.7]} 23. Bd3 {[%clk 0:01:02.8]} 23... Ne6 {[%clk 0:00:59.5]} 24.
Rc1 {[%clk 0:00:48.9]} 24... bxa3 {[%clk 0:00:25]} 25. bxa3 {[%clk 0:00:48.6]}
25... Nd8 {[%clk 0:00:25.2]} 26. Qc5 {[%clk 0:00:41.4]} 26... Rb8 {[%clk
0:00:23.4]} 27. Qxa5 {[%clk 0:00:39.3]} 27... g6 {[%clk 0:00:10.4]} 28. Qc3
{[%clk 0:00:35]} 28... Rc8 {[%clk 0:00:06.9]} 29. Nc5 {[%clk 0:00:34.7]} 29...
Ne6 {[%clk 0:00:06.9]} 30. a4 {[%clk 0:00:30.2]} 30... Nxc5 {[%clk 0:00:05.8]}
31. Qxc5 {[%clk 0:00:29.5]} 31... Rc7 {[%clk 0:00:06.4]} 32. a5 {[%clk
0:00:29.1]} 32... Rce7 {[%clk 0:00:06.8]} 33. Re1 {[%clk 0:00:20.8]} 33... Nf5
{[%clk 0:00:05.5]} 34. Bxf5 {[%clk 0:00:19.1]} 34... Qxf5 {[%clk 0:00:06.4]} 35.
Qxc6 {[%clk 0:00:18.9]} 35... Re6 {[%clk 0:00:05.2]} 36. Qc5 {[%clk 0:00:16.7]}
36... Ra8 {[%clk 0:00:05.4]} 37. Ra1 {[%clk 0:00:13.7]} 37... Rea6 {[%clk
0:00:05.2]} 38. Ra3 {[%clk 0:00:13.1]} 38... Kg7 {[%clk 0:00:05.5]} 39. Qe7
{[%clk 0:00:11.9]} 39... Re6 {[%clk 0:00:05.3]} 40. Qb7 {[%clk 0:00:10.6]} 40...
Rea6 {[%clk 0:00:05.2]} 41. Qc7 {[%clk 0:00:09.6]} 41... Rxa5 {[%clk 0:00:03.9]}
42. Rxa5 {[%clk 0:00:09.4]} 42... Rc8 {[%clk 0:00:03.1]} 43. Qe5+ {[%clk
0:00:09.1]} 43... Qf6 {[%clk 0:00:01.8]} 44. Qxf6+ {[%clk 0:00:09.2]} 44... Kxf6
{[%clk 0:00:02.7]} 45. Ra6+ {[%clk 0:00:09.3]} 45... Kf5 {[%clk 0:00:02.3]} 46.
Ra7 {[%clk 0:00:08.9]} 46... f6 {[%clk 0:00:02.1]} 47. Rd7 {[%clk 0:00:08.8]}
47... Rc3 {[%clk 0:00:01]} 48. Rxd5+ {[%clk 0:00:08.9]} 48... Ke4 {[%clk
0:00:01.9]} 49. Rd6 {[%clk 0:00:08.5]} 49... Kd3 {[%clk 0:00:01.7]} 50. Rxf6
{[%clk 0:00:08.5]} 50... Ke2 {[%clk 0:00:02.1]} 51. Rxg6 {[%clk 0:00:08.8]}
51... Rc2 {[%clk 0:00:02.7]} 52. Rg4 {[%clk 0:00:08.5]} 52... Ke1 {[%clk
0:00:02.4]} 53. f5 {[%clk 0:00:09]} 53... Ke2 {[%clk 0:00:02]} 54. f6 {[%clk
0:00:09.3]} 54... Kd3 {[%clk 0:00:02.7]} 55. f7 {[%clk 0:00:09.5]} 55... Kc3
{[%clk 0:00:02.3]} 56. f8=Q {[%clk 0:00:09.4]} 56... Rb2 {[%clk 0:00:01.5]} 57.
e4+ {[%clk 0:00:09.4]} 57... Kc2 {[%clk 0:00:01.6]} 58. Qc5+ {[%clk 0:00:09.4]}
58... Kb1 {[%clk 0:00:02]} 59. Rf1+ {[%clk 0:00:09.2]} 59... Ka2 {[%clk
0:00:02.5]} 60. Rg8 {[%clk 0:00:08.6]} 60... Rc2 {[%clk 0:00:01]} 61. Ra8+
{[%clk 0:00:08.2]} 1-0